fUST/lending_fUST_20260211
["ID","MTS","AMOUNT","RATE_DAILY","PERIOD"]
[405083713,1770770855213,-500.0,0.0003796,7]
[405083714,1770770855243,-500.0,0.0003796,7]
[405083715,1770770855268,-500.0,0.0003796,7]
[405083716,1770770855300,-500.0,0.0003796,7]
[405083717,1770770855326,-500.0,0.0003796,7]
[405083718,1770770855355,-500.0,0.0003796,7]
[405083719,1770770855382,-430.60343016,0.0003796,7]
[405083720,1770770855408,-500.0,0.0003796,7]
[405083721,1770770855434,-500.0,0.0003796,7]
[405083722,1770770855460,-500.0,0.0003796,7]
[405083723,1770770855486,-500.0,0.0003796,7]
[405083724,1770770855512,-500.0,0.0003796,7]
[405083725,1770770855535,-3098.41926156,0.00037963,3]
[405083732,1770771005726,200.0,0.00033706,2]
[405083733,1770771010837,500.41833279,0.00013699,2]
[405083766,1770771032016,-30.56018057,0.00037714,2]
[405083795,1770771037902,-980.51278021,0.00037714,2]
[405083897,1770771038890,-126.99867322,0.00037714,2]
[405083899,1770771038900,-742.18218896,0.00037861,2]
[405083901,1770771038910,-5178.4576082,0.00037872,2]
[405083934,1770771040084,-252.73447341,0.00037872,2]
[405083958,1770771040373,-6.2887468,0.00037872,2]
[405083959,1770771040383,-25.78128327,0.00037909,7]
[405084329,1770771044495,-169.88334921,0.00037909,7]
[405084331,1770771044505,-1444.16356519,0.00037963,3]
[405084472,1770771046041,-35.70267273,0.00037963,3]
[405084499,1770771046290,-1552.59063474,0.00037963,3]
[405084501,1770771046299,-678.58912363,0.00037971,120]
[405084524,1770771047296,286.64624405,0.00025244,2]
[405084528,1770771099842,208.28477331,0.00025244,2]
[405084529,1770771147238,500.0,0.00033093,7]
[405084530,1770771150889,156.53150315,0.00033154,2]
[405084532,1770771306830,166.20589045,0.00013273,2]
[405084533,1770771364171,500.42872228,0.00013273,2]
[405084536,1770771664226,155.5751204,0.00016438,2]
[405084537,1770771826240,150.0,0.0002,7]
[405084539,1770771937137,-150.0,0.000253,2]
[405084540,1770771937158,-253.07200024,0.00025583,2]
[405084541,1770772031096,-1071.1695254,0.00025583,2]
[405084542,1770772034082,-1051.54151669,0.00025583,2]
[405084543,1770772034104,-216.23047923,0.000273,2]
[405084544,1770772034127,-150.0,0.0003,7]
[405084545,1770772034147,-323.97113,0.00034668,2]
[405084546,1770772034166,-160.0,0.0003492,2]
[405084547,1770772034187,-1470.75074126,0.00035042,2]
[405084550,1770772145253,-2132.98971931,0.00025583,2]
[405084551,1770772145273,-307.48618687,0.00035042,2]
[405084552,1770772145294,-340.08512295,0.00035042,2]
[405084553,1770772145317,-221.39713853,0.0003513,2]
[405084567,1770772232035,-1218.0,0.00036225,3]
[405084568,1770772232045,-558.81139622,0.00036226,2]
[405084607,1770772238371,-817.18860378,0.00036226,2]
[405084609,1770772238383,-166.37101933,0.00036226,2]
[405084712,1770772241137,-769.62361328,0.00036226,2]
[405085117,1770772245757,-1364.00536739,0.00036226,2]
[405085119,1770772245767,-500.0,0.00036492,30]
[405085121,1770772245777,-160.0,0.00037,120]
[405085123,1770772245788,-422.0,0.00037141,2]
[405085125,1770772245798,-721.0,0.00037141,2]
[405085127,1770772245808,-168.0,0.00037521,2]
[405085129,1770772245818,-1395.47982328,0.00037521,2]
[405085131,1770772245828,-269.78890307,0.00037674,2]
[405085134,1770772245839,-63.64305471,0.00037791,2]
[405085192,1770772246446,-304.87788521,0.00037791,2]
[405085194,1770772246457,-306.14681915,0.00037819,30]
[405087475,1770772269938,1695.64377378,0.00025583,2]
[405087478,1770772269959,739.75477521,0.00025583,2]
[405087878,1770772344083,500.0,0.00033879,7]
[405087884,1770772508412,152.55690005,0.00017808,2]
[405087890,1770773134122,-150.0,0.00025266,2]
[405087891,1770773134144,-1153.10677015,0.00025327,2]
[405087892,1770773134164,-63.08371385,0.00025583,2]
[405087893,1770773144097,-892.34201923,0.00025583,2]
[405087894,1770773229094,-1202.56237376,0.00025583,2]
[405087895,1770773229114,-170.0,0.00029233,14]
[405087896,1770773229136,-257.67410518,0.00031779,2]
[405087897,1770773229157,-145.73827698,0.00033326,7]
[405087898,1770773242103,-354.26172302,0.00033326,7]
[405087899,1770773242124,-1200.0000001,0.00033806,2]
[405087900,1770773242144,-500.0,0.00034004,7]
[405087901,1770773242165,-393.0,0.000349,120]
[405087902,1770773242185,-150.0,0.00035,7]
[405087903,1770773242204,-1072.43342041,0.00035,2]
[405087904,1770773273380,12317.93601078,0.00025,15]
[405087905,1770773289304,7223.93196877,0.000125,2]
[405087906,1770773289325,3515.09871588,0.000125,2]
[405087907,1770773296129,1022.33135632,0.00015,2]
[405087909,1770773307767,16843.88324506,0.00017,2]
[405087910,1770773307985,8618.68668274,0.0002349,2]
[405087911,1770773308006,4550.37095865,0.0002349,2]
[405087912,1770773311912,596.90810866,0.000149,2]
[405087913,1770773318961,6852.72093269,0.0001,2]
[405087914,1770773318989,2532.1919548,0.0001,2]
[405087915,1770773322069,4500.83132456,0.000135,2]
[405087916,1770773322114,3789.85,0.0001369,2]
[405087917,1770773323954,1332.12941417,0.0002,2]
[405087918,1770773350081,-150.0,0.0002589,2]
[405087919,1770773350103,-150.0,0.0002789,2]
[405087920,1770773350124,-315.06361275,0.00034262,2]
[405087921,1770773351087,-398.51484935,0.00035042,2]
[405087922,1770773351108,-164.18247833,0.00035042,2]
[405087923,1770773353084,-418.0156722,0.00035617,2]
[405087924,1770773353107,-160.0,0.00035666,3]
[405087925,1770773390970,2491.0276172,0.00025583,2]
[405087926,1770773412535,233.37069885,0.00024953,2]
[405087927,1770773430955,215.6514163,0.00032356,2]
[405087949,1770773432245,-400.0,0.00035999,2]
[405087950,1770773432255,-1427.0,0.00036,6]
[405087951,1770773432267,-2523.0,0.00036,6]
[405088114,1770773445577,672.61710289,0.00034262,2]
[405088115,1770773445599,424.06409575,0.00034262,2]
[405088116,1770773445961,-2263.92846367,0.00036,6]
[405088118,1770773445971,-168.0,0.00036694,2]
[405088120,1770773445981,-300.0,0.00036719,30]
[405088122,1770773445991,-295.528461,0.00036938,2]
[405088124,1770773446001,-223.60519585,0.00036984,2]
[405088125,1770773446013,-707.76237244,0.00037207,2]
[405088126,1770773446023,-973.6491666,0.00037704,30]
[405088127,1770773446032,-1998.406599,0.00037818,2]
[405088128,1770773446043,-500.0,0.0003786,15]
[405088129,1770773446053,-500.0,0.0003786,15]
[405088130,1770773446063,-500.0,0.0003786,7]
[405088131,1770773446073,-500.0,0.0003786,15]
[405088132,1770773446083,-428.40863888,0.0003786,7]
[405088137,1770773446508,-71.59136112,0.0003786,7]
[405088138,1770773446518,-500.0,0.0003786,15]
[405088139,1770773446528,-500.0,0.0003786,7]
[405088140,1770773446537,-531.91440844,0.0003786,15]
[405088141,1770773446546,-500.0,0.0003786,15]
[405088142,1770773446555,-38.80749075,0.0003786,7]
[405088145,1770773446749,-461.19250925,0.0003786,7]
[405088146,1770773446760,-500.0,0.0003786,7]
[405088147,1770773446769,-500.0,0.0003786,7]
[405088148,1770773446778,-573.81051559,0.0003786,7]
[405088149,1770773446787,-500.0,0.0003786,15]
[405088150,1770773446795,-221.23027607,0.0003786,7]
[405088151,1770773446804,-500.0,0.0003786,7]
[405088152,1770773446813,-500.0,0.0003786,15]
[405088153,1770773446821,-500.0,0.0003786,7]
[405088154,1770773446833,-275.38190145,0.0003786,15]
[405088155,1770773467936,500.0,0.00013273,2]
[405088156,1770773467983,559.46862944,0.00013821,2]
[405088157,1770773482465,500.0,0.00013273,2]
[405088158,1770773482513,1000.0,0.00013821,2]
[405088159,1770773482565,171.13511579,0.00014368,2]
[405088160,1770773482928,161.89263378,0.00013273,2]
[405088165,1770773597010,5000.0,0.000237,2]
[405088168,1770773753056,-194.78760602,0.00024953,2]
[405088169,1770773756650,-499.99956582,0.00024703,2]
[405088173,1770773943274,510.88,0.00030137,120]
[405088176,1770774123056,500.0,0.00013273,2]
[405088177,1770774123108,250.56903634,0.00013821,2]
[405088178,1770774139291,2339.33094398,0.000237,2]
[405088179,1770774139878,-311.99680187,0.00023969,2]
[405088180,1770774147570,446.86258855,0.000237,2]
[405088181,1770774214127,37519.0,0.000237,2]
[405088183,1770774322575,-233.82641006,0.00023969,2]
[405088184,1770774322597,-266.17358988,0.0002399,2]
[405088185,1770774339567,499.99999994,0.000237,2]
[405088186,1770774343119,-93.86638998,0.0002399,2]
[405088187,1770774343140,-60.13245562,0.0002409,2]
[405088189,1770774398292,-89.86754438,0.0002409,2]
[405088190,1770774398313,-270.99417696,0.00024211,2]
[405088192,1770774425090,-532.00582304,0.00024211,2]
[405088193,1770774425112,-2600.2119319,0.00024329,2]
[405088194,1770774425134,-225.70408239,0.0002435,2]
[405088195,1770774430084,-261.59396919,0.0002435,2]
[405088196,1770774430106,-177.0,0.0002609,2]
[405088197,1770774430132,-300.0,0.00027104,30]
[405088198,1770774430155,-1200.0,0.00027823,2]
[405088199,1770774430175,-814.01065166,0.00027824,2]
[405088200,1770774430197,-204.0,0.0002809,2]
[405088201,1770774430219,-300.0,0.00029157,2]
[405088202,1770774430239,-300.0,0.00029158,2]
[405088203,1770774430261,-300.0,0.00029158,2]
[405088204,1770774430302,-220.28958357,0.00029158,2]
[405088205,1770774442104,-7629.64802783,0.00029158,2]
[405088212,1770774550162,-2584.72606114,0.00025583,2]
[405088213,1770774550185,-300.0,0.00029157,2]
[405088214,1770774550206,-5998.28265355,0.00029158,2]
[405088215,1770774550225,-164.62014505,0.00029233,14]
[405088216,1770774550246,-231.0,0.0003009,2]
[405088217,1770774550266,-1680.0,0.00030186,2]
[405088218,1770774550287,-420.0,0.00031452,2]
[405088219,1770774550306,-420.0,0.00031453,3]
[405088220,1770774550324,-204.0,0.00031453,3]
[405088221,1770774550345,-258.0,0.0003209,2]
[405088222,1770774550365,-844.42935062,0.00032478,2]
[405088223,1770774550387,-1196.0,0.00032749,3]
[405088224,1770774550408,-500.0,0.00033477,7]
[405088225,1770774550426,-422.34810911,0.00033834,2]
[405088226,1770774550447,-500.0,0.00033928,2]
[405088227,1770774550466,-500.0,0.00033928,2]
[405088228,1770774550485,-427.0,0.00033928,2]
[405088229,1770774550505,-172.51675621,0.0003409,120]
[405088230,1770774555094,-348.68781486,0.00034682,2]
[405088231,1770774555118,-500.0,0.00035011,7]
[405088232,1770774555141,-352.47228397,0.00035011,7]
[405088233,1770774555164,-500.0,0.00035011,7]
[405088234,1770774555185,-500.0,0.00035011,7]
[405088235,1770774555205,-447.2645239,0.00035011,7]
[405088236,1770774555229,-500.0,0.00035011,7]
[405088237,1770774555250,-500.0,0.00035011,7]
[405088238,1770774555273,-500.0,0.00035011,7]
[405088239,1770774555294,-123.38679634,0.00035011,7]
[405088240,1770774559092,-376.61320366,0.00035011,7]
[405088241,1770774559114,-500.0,0.00035011,7]
[405088242,1770774559135,-500.0,0.00035011,7]
[405088243,1770774559156,-398.38698666,0.00035011,7]
[405088244,1770774559179,-358.43831592,0.00035011,7]
[405088245,1770774559201,-500.0,0.00035011,7]
[405088246,1770774559316,-500.0,0.00035011,7]
[405088247,1770774559337,-500.0,0.00035011,7]
[405088248,1770774574218,-500.0,0.00035288,30]
[405088249,1770774574240,-3624.0443333,0.0003562,2]
[405088250,1770774574262,-31.69921051,0.0003562,30]
[405088275,1770774638630,-968.30078949,0.0003562,30]
[405088276,1770774638640,-1000.0,0.0003562,30]
[405088277,1770774638650,-1000.0,0.0003562,30]
[405088278,1770774638660,-424.724059,0.0003562,30]
[405088279,1770774638670,-1569.15739019,0.00035802,2]
[405088305,1770774640965,-3e-08,0.00035802,2]
[405088450,1770774646609,-1109.51974808,0.00035802,2]
[405088451,1770774646758,-33436.682583,0.00035802,2]
[405088452,1770774646769,-5789.7916889,0.00035965,2]
[405088453,1770774646781,-383.83116235,0.00036065,2]
[405088454,1770774646791,-600.0,0.00036331,30]
[405088455,1770774646800,-500.0,0.0003635,30]
[405088456,1770774646810,-216.56,0.00036357,2]
[405088457,1770774646821,-168.0,0.0003637,120]
[405088458,1770774646830,-168.0,0.00036864,7]
[405088459,1770774646840,-5789.7916889,0.00036926,2]
[405088460,1770774646849,-468.01,0.0003699,10]
[405088461,1770774646858,-498.1,0.0003699,10]
[405088462,1770774646867,-415.08,0.0003699,10]
[405088463,1770774646876,-210.9278015,0.0003699,3]
[405088464,1770774646885,-500.0,0.00036999,2]
[405088465,1770774646894,-500.0,0.00036999,2]
[405088466,1770774646903,-38759.78498385,0.00037,2]
[405088467,1770774646912,-32026.0818302,0.00037,2]
[405088468,1770774667592,625.878482,0.0003455,2]
[405088469,1770774698957,159.04194704,0.00033154,2]
[405088476,1770774741259,500.0,0.00033965,5]
[405088480,1770774927473,500.0,0.00013273,2]
[405088481,1770774927524,245.54302637,0.00013821,2]
[405088483,1770775006853,500.75491099,0.00013699,2]
[405088484,1770775084244,300.35824667,0.00014247,2]
[405088485,1770775084308,500.0,0.00013699,2]
[405088487,1770775549105,-150.0,0.00025252,2]
[405088488,1770775549128,-454.84780985,0.00025583,2]
[405088492,1770775608258,-486.08617213,0.00025583,2]
[405088494,1770775629128,-367.63738287,0.00025583,2]
[405088495,1770775649077,-1220.60327174,0.00025583,2]
[405088496,1770775649098,-177.0,0.00027252,2]
[405088497,1770775649120,-515.70238395,0.00029232,2]
[405088498,1770775649140,-174.35350934,0.00029252,2]
[405088499,1770775649255,-150.0,0.0003,7]
[405088500,1770775649277,-201.58,0.00030602,2]
[405088501,1770775649297,-180.97926587,0.00031341,7]
[405088502,1770775649317,-294.27902926,0.000332,117]
[405088503,1770775649338,-207.73282537,0.00033249,2]
[405088504,1770775649361,-168.0,0.00034107,2]
[405088505,1770775649380,-525.38393067,0.00034415,2]
[405088506,1770775649401,-61.05690944,0.00034595,2]
[405088507,1770775680155,220.66,0.00013487,2]
[405088508,1770775755094,-2507.76931232,0.00025583,2]
[405088509,1770775755131,-150.58254237,0.00034415,2]
[405088510,1770775755157,-221.06590122,0.00034595,2]
[405088511,1770775755182,-168.0,0.0003463,7]
[405088512,1770775755206,-704.32957,0.00034638,2]
[405088513,1770775755231,-168.0,0.00034693,2]
[405088514,1770775755257,-168.0,0.00034697,2]
[405088515,1770775755282,-216.0,0.0003481,7]
[405088516,1770775755306,-2411.18455438,0.00035,2]
[405088517,1770775755326,-168.0,0.00035031,2]
[405088518,1770775764089,-216.0,0.00035316,2]
[405088519,1770775764107,-160.0,0.000354,2]
[405088520,1770775764126,-302.0,0.000357,3]
[405088521,1770775764146,-302.0,0.000357,3]
[405088522,1770775764165,-286.8762017,0.00035701,2]
[405088523,1770775764183,-208.33125193,0.00035701,2]
[405088524,1770775764202,-500.0,0.00035801,5]
[405088525,1770775764222,-216.0,0.00035869,2]
[405088526,1770775806548,208.33125193,0.00025199,2]
[405088637,1770775837924,-40.8485981,0.00035964,5]
[405088641,1770775839901,-265.99305771,0.00035964,5]
[405088643,1770775845311,-54.00957468,0.00035964,5]
[405088644,1770775845851,-167.09934124,0.00035964,5]
[405088645,1770775845863,-118.02368887,0.0003599,120]
[405088646,1770775854272,214.81550698,0.00033154,2]
[405088647,1770775873508,182.88303033,0.00034415,2]
[405088648,1770775876150,545.8218845,0.00035693,2]
[405088649,1770775878978,868.3677862,0.00035693,2]
[405088650,1770775880928,224.81208184,0.00013273,2]
[405088654,1770776152554,-150.0,0.0002589,2]
[405088660,1770776476037,303.10001607,0.000189,2]
[405088672,1770776713590,380.45473758,0.00013273,2]
[405088673,1770776740109,-169.08260725,0.00033,14]
[405088674,1770776751253,-519.84781131,0.00025583,2]
[405088676,1770776794941,174.66024175,0.00013273,2]
[405088677,1770776834097,-2423.64691923,0.00025583,2]
[405088678,1770776834120,-1686.98906791,0.00033783,2]
[405088679,1770776846094,-500.0,0.00033644,7]
[405088680,1770776846116,-1197.48938559,0.00033783,2]
[405088681,1770776846138,-400.0,0.0003391,2]
[405088682,1770776846160,-318.07995887,0.00033911,2]
[405088683,1770776846181,-1746.6300304,0.00033911,2]
[405088684,1770776846202,-861.71655334,0.00034038,2]
[405088685,1770776846222,-251.39904631,0.0003448,2]
[405088686,1770776846245,-168.0,0.00034659,2]
[405088687,1770776846269,-204.0,0.00034858,120]
[405088688,1770776846293,-204.0,0.0003488,2]
[405088689,1770776846313,-52.50642747,0.00034934,3]
[405088690,1770776875334,3644.88502067,0.00025,15]
[405088691,1770776882245,281.72341673,0.00024,2]
[405088702,1770776945147,-3054.29616295,0.0002499,2]
[405088703,1770776945167,-288.25,0.0002499,10]
[405088704,1770776945187,-200.0,0.00024998,2]
[405088705,1770776945206,-500.0,0.00024999,2]
[405088706,1770776945226,-211.3349548,0.00024999,2]
[405088707,1770776945245,-463.44693697,0.00024999,2]
[405088708,1770776945264,-500.0,0.00024999,2]
[405088709,1770776945285,-500.0,0.00024999,2]
[405088710,1770776945306,-500.0,0.00024999,2]
[405088711,1770776945331,-500.0,0.00024999,2]
[405088712,1770776945352,-500.0,0.00024999,2]
[405088713,1770776945373,-500.0,0.00024999,2]
[405088714,1770776945394,-500.0,0.00024999,2]
[405088715,1770776945416,-500.0,0.00024999,2]
[405088716,1770776945439,-500.0,0.00024999,2]
[405088717,1770776945460,-500.0,0.00024999,2]
[405088718,1770776945480,-500.0,0.00024999,2]
[405088719,1770776945502,-500.0,0.00024999,2]
[405088720,1770776945523,-500.0,0.00024999,2]
[405088721,1770776945545,-500.0,0.00024999,2]
[405088722,1770776945564,-500.0,0.00024999,2]
[405088723,1770776945587,-500.0,0.00024999,2]
[405088724,1770776945608,-500.0,0.00024999,2]
[405088725,1770776945629,-500.0,0.00024999,2]
[405088726,1770776945649,-500.0,0.00024999,2]
[405088727,1770776945675,-200.0369442,0.00024999,2]
[405088728,1770776945697,-455.34498105,0.00024999,2]
[405088729,1770776945720,-500.0,0.00024999,2]
[405088730,1770776945742,-500.0,0.00024999,2]
[405088731,1770776945766,-500.0,0.00024999,2]
[405088732,1770776945786,-500.0,0.00024999,2]
[405088733,1770776945818,-500.0,0.00024999,2]
[405088734,1770776945839,-500.0,0.00024999,2]
[405088735,1770776945860,-500.0,0.00024999,2]
[405088736,1770776945880,-500.0,0.00024999,2]
[405088737,1770776945903,-500.0,0.00024999,2]
[405088738,1770776945925,-500.0,0.00024999,2]
[405088739,1770776945946,-500.0,0.00024999,2]
[405088740,1770776945968,-500.0,0.00024999,2]
[405088741,1770776945993,-500.0,0.00024999,2]
[405088742,1770776946014,-500.0,0.00024999,2]
[405088743,1770776946036,-500.0,0.00024999,2]
[405088744,1770776946057,-216.40928739,0.00024999,2]
[405088745,1770776946078,-372.83451841,0.00024999,2]
[405088746,1770776946107,-500.0,0.00024999,2]
[405088747,1770776946130,-500.0,0.00024999,2]
[405088748,1770776946151,-220.12955233,0.00024999,2]
[405088749,1770776946172,-500.0,0.00024999,2]
[405088750,1770776946194,-500.0,0.00024999,2]
[405088751,1770776946218,-500.0,0.00024999,2]
[405088752,1770776946239,-500.0,0.00024999,2]
[405088753,1770776946260,-500.0,0.00024999,2]
[405088754,1770776946281,-500.0,0.00024999,2]
[405088755,1770776946302,-500.0,0.00024999,2]
[405088756,1770776946323,-500.0,0.00024999,2]
[405088757,1770776946345,-500.0,0.00024999,2]
[405088758,1770776946449,-500.0,0.00024999,2]
[405088759,1770776946474,-500.0,0.00024999,2]
[405088760,1770776946496,-500.0,0.00024999,2]
[405088761,1770776946518,-500.0,0.00024999,2]
[405088762,1770776946540,-500.0,0.00024999,2]
[405088763,1770776946562,-500.0,0.00024999,2]
[405088764,1770776946582,-100722.69260977,0.00025,15]
[405088765,1770776946602,-500.0,0.00025273,2]
[405088766,1770776946622,-500.0,0.00025547,2]
[405088767,1770776946642,-500.0,0.00025821,2]
[405088768,1770776946662,-500.0,0.00026095,2]
[405088769,1770776946680,-500.0,0.00026369,2]
[405088770,1770776946699,-500.0,0.00026643,2]
[405088771,1770776946718,-500.0,0.00026917,2]
[405088772,1770776946737,-494.97511462,0.00027465,2]
[405088773,1770776946756,-15273.41349423,0.0003,2]
[405088774,1770776946775,-410.47163604,0.0003,30]
[405088775,1770776946794,-270.63634494,0.0003,2]
[405088776,1770776946813,-150.0,0.0003013,2]
[405088777,1770776946833,-500.31111101,0.0003013,2]
[405088778,1770776946856,-158.7662133,0.00030137,120]
[405088779,1770776946878,-307.1436102,0.0003099,2]
[405088780,1770776946898,-487.45205838,0.00031,2]
[405088781,1770776946919,-500.0,0.0003175,2]
[405088782,1770776946938,-12047.66384199,0.000319,2]
[405088783,1770776953100,-240.21,0.0002499,10]
[405088784,1770776953122,-13243.12231467,0.000319,2]
[405088785,1770776953141,-116.61747217,0.00033291,7]
[405088786,1770776957195,-383.38252783,0.00033291,7]
[405088787,1770776957218,-345.9,0.00034925,10]
[405088788,1770776957319,-1147.49357253,0.00034934,3]
[405088789,1770776957343,-204.0,0.00034935,7]
[405088790,1770776957363,-296.24887974,0.00035,7]
[405088791,1770776957384,-151.94573594,0.00035,14]
[405088792,1770776957404,-22681.83152014,0.00035,2]
[405088793,1770776958085,-3616.6928283,0.00035,2]
[405088794,1770776958114,-204.0,0.0003508,2]
[405088795,1770776960653,215.6514164,0.00028013,2]
[405088796,1770776964135,-742.38915205,0.00035679,2]
[405088797,1770776964159,-300.0,0.0003569,3]
[405088798,1770776964180,-3205.36029197,0.0003569,2]
[405088799,1770777011502,108.32308546,0.00024999,2]
[405088800,1770777011537,80.30574405,0.00024999,2]
[405088801,1770777026529,5646.24166974,0.00024,2]
[405088802,1770777026554,4353.75833026,0.00024,2]
[405088821,1770777031763,-385.24580778,0.0003569,2]
[405088822,1770777031772,-43.84739722,0.00035699,2]
[405088823,1770777036780,1242.31058531,0.00024,2]
[405088824,1770777036801,2536.07578459,0.00024,2]
[405088825,1770777036823,6221.6136301,0.00024,2]
[405088858,1770777037886,-330.07168844,0.00035699,2]
[405088859,1770777037895,-664.74504117,0.00035699,2]
[405088860,1770777037904,-344.01557413,0.00035699,2]
[405088861,1770777037914,-2.37509431,0.00035917,14]
[405088862,1770777037924,-161.62490569,0.00035917,14]
[405088863,1770777037934,-164.0,0.00035917,14]
[405088864,1770777037943,-164.0,0.00035917,14]
[405088865,1770777037959,-164.0,0.00035917,14]
[405088866,1770777037972,-170.86396019,0.00035917,14]
[405088867,1770777037981,-326.92668248,0.00035922,3]
[405088868,1770777037991,-97.97631113,0.0003599,120]
[405088869,1770777038001,-168.0,0.00036,2]
[405088871,1770777038011,-216.0,0.00036018,7]
[405088873,1770777038021,-2000.0,0.0003604,2]
[405088875,1770777038031,-2000.0,0.0003604,2]
[405088877,1770777038040,-2000.0,0.0003604,2]
[405088879,1770777038050,-331.87983561,0.0003604,2]
[405088881,1770777038060,-151.0,0.0003604,2]
[405088883,1770777038070,-151.0,0.0003604,2]
[405088885,1770777038080,-7743.2402211,0.00036062,2]
[405088887,1770777038092,-153.137861,0.00036062,31]
[405088889,1770777038104,-247.2660338,0.00036325,2]
[405088891,1770777038114,-151.0,0.00036598,31]
[405088893,1770777038127,-154.386548,0.00036598,31]
[405088895,1770777038137,-151.0,0.00036598,31]
[405088897,1770777038147,-154.046416,0.00036598,31]
[405088899,1770777038157,-514.9,0.00036599,2]
[405088901,1770777038167,-500.0,0.00036688,7]
[405088903,1770777038176,-524.45883915,0.00036688,15]
[405088905,1770777038186,-541.4260576,0.00036688,15]
[405088907,1770777038196,-301.82325416,0.00036688,7]
[405088908,1770777038207,-188.8929938,0.00036688,15]
[405088910,1770777038218,-500.0,0.00036688,7]
[405088913,1770777038227,-439.48277567,0.00036688,7]
[405088915,1770777038237,-3054.29616295,0.00036689,3]
[405088917,1770777038247,-2216.95366,0.00036699,2]
[405088919,1770777038257,-206.16,0.000367,2]
[405088921,1770777038267,-580.48509878,0.00036821,30]
[405088923,1770777038276,-216.0,0.00036841,120]
[405088925,1770777038287,-285.62369483,0.00036978,2]
[405088927,1770777038296,-250.0,0.00036978,2]
[405088929,1770777038305,-250.0,0.00036978,2]
[405088931,1770777038315,-250.0,0.00036978,2]
[405088933,1770777038324,-250.0,0.00036978,2]
[405088935,1770777038334,-250.0,0.00036978,2]
[405088937,1770777038343,-500.0,0.00036978,2]
[405088939,1770777038352,-250.0,0.00036978,2]
[405088941,1770777038362,-500.0,0.00036978,2]
[405088943,1770777038372,-202.93794735,0.00036978,2]
[405088945,1770777038382,-500.0,0.00036978,2]
[405088947,1770777038392,-500.0,0.00036978,2]
[405088949,1770777038401,-250.0,0.00036978,2]
[405088951,1770777038411,-500.0,0.00036978,2]
[405088953,1770777038420,-500.0,0.00036978,2]
[405088955,1770777038429,-250.0,0.00036978,2]
[405088957,1770777038439,-500.0,0.00036978,2]
[405088959,1770777038448,-250.0,0.00036978,2]
[405088961,1770777038457,-500.0,0.00036978,2]
[405088963,1770777038467,-250.0,0.00036978,2]
[405088965,1770777038476,-250.0,0.00036978,2]
[405088967,1770777038485,-500.0,0.00036978,2]
[405088969,1770777038495,-250.0,0.00036978,2]
[405088971,1770777038505,-500.0,0.00036978,2]
[405088973,1770777038515,-250.0,0.00036978,2]
[405088975,1770777038525,-500.0,0.00036978,2]
[405088977,1770777038535,-250.0,0.00036978,2]
[405088979,1770777038545,-250.0,0.00036978,2]
[405088981,1770777038554,-250.0,0.00036978,2]
[405088983,1770777038564,-250.0,0.00036978,2]
[405088985,1770777038573,-258.24811194,0.00036978,2]
[405088987,1770777038582,-500.0,0.00036978,2]
[405088989,1770777038592,-500.0,0.00036978,2]
[405088991,1770777038601,-500.0,0.00036978,2]
[405088993,1770777038611,-500.0,0.00036978,2]
[405088995,1770777038622,-500.0,0.00036978,2]
[405088997,1770777038632,-3054.29616295,0.0003698,3]
[405089000,1770777038642,-265.99305771,0.00036984,5]
[405089002,1770777038651,-355.61785475,0.00036987,2]
[405089075,1770777040154,-158.49533544,0.0003604,2]